bitfinex-derivatives/quotes_ETHF0:USTF0_20260117
["timestamp","ask_amount","ask_price","bid_price","bid_amount"]
[1768637824270,0.9149629,3296.4,3295.5,0.98314049]
[1768637824471,0.9149629,3296.3,3295.5,0.98314049]
[1768637824663,1.7,3296.8,3295.5,0.98314049]
[1768637824865,0.91461875,3296.5,3295.5,0.98314049]
[1768637825064,0.91461875,3296.4,3295.5,0.98314049]
[1768637825270,1.7,3296.8,3295.5,0.98314049]
[1768637825466,0.91438436,3296.5,3295.5,0.98314049]
[1768637825666,0.91438436,3296.4,3295.5,0.98314049]
[1768637825861,1.7,3296.8,3295.5,0.98314049]
[1768637826060,1.17872517,3296.5,3295.5,0.98314049]
[1768637826264,0.91438433,3296.4,3295.5,0.98314049]
[1768637826467,1.7,3296.8,3295.5,0.98314049]
[1768637826668,0.91420344,3296.5,3295.5,0.98314049]
[1768637826866,0.91420344,3296.4,3295.5,0.98314049]
[1768637827069,1.7,3296.8,3295.5,0.98314049]
[1768637827268,0.91407805,3296.5,3295.5,0.98314049]
[1768637827469,0.91407805,3296.4,3295.5,0.98314049]
[1768637827669,1.7,3296.8,3295.5,0.98314049]
[1768637827866,0.00249205,3297.4,3296.5,0.98314049]
[1768637828070,0.98314049,3296.9,3295.4,1.132]
[1768637828375,0.98314049,3296.9,3295.5,40.8]
[1768637828568,0.98314049,3297.0,3295.5,40.8]
[1768637828777,0.98314049,3296.8,3295.1,0.98314049]
[1768637828971,0.98314049,3296.8,3295.5,0.00255616]
[1768637829969,0.14379777,3296.7,3295.5,0.00255616]
[1768637832378,0.14379777,3296.4,3295.5,0.00255616]
[1768637832578,0.14379777,3296.1,3295.5,0.00255616]
[1768637832878,0.14379777,3296.1,3294.5,1.13496049]
[1768637833078,0.14379777,3296.1,3294.6,40.8]
[1768637833375,0.14379777,3296.1,3294.8,0.98314049]
[1768637833764,0.14379777,3296.1,3294.8,0.98641694]
[1768637835576,0.14379777,3295.8,3294.8,0.00327645]
[1768637835774,0.98314049,3295.6,3294.8,0.00327645]
[1768637835976,0.14379777,3295.8,3294.8,0.00327645]
[1768637839785,0.14379777,3295.7,3294.8,0.00327645]
[1768637870224,0.90929546,3295.6,3294.8,0.00327645]
[1768637870424,0.14379777,3295.7,3294.8,0.00327645]
[1768637870724,0.90929545,3295.6,3294.8,0.00327645]
[1768637870926,0.14379777,3295.7,3294.8,0.00327645]
[1768637871224,0.90932951,3295.6,3294.8,0.00327645]
[1768637871424,0.14379777,3295.7,3294.8,0.00327645]
[1768637871626,0.90932957,3295.6,3294.8,0.00327645]
[1768637871820,0.14379777,3295.7,3294.8,0.00327645]
[1768637872127,0.90932955,3295.6,3294.8,0.00327645]
[1768637872325,0.14379777,3295.7,3294.8,0.00327645]
[1768637872524,0.90937185,3295.6,3294.8,0.00327645]
[1768637872725,0.14379777,3295.7,3294.8,0.00327645]
[1768637872924,0.91031468,3295.6,3294.8,0.00327645]
[1768637873226,0.14379777,3295.7,3294.8,0.00327645]
[1768637873425,0.91036799,3295.6,3294.8,0.00327645]
[1768637873625,0.14379777,3295.7,3294.8,0.00327645]
[1768637873828,0.910368,3295.6,3294.8,0.00327645]
[1768637874028,0.14379777,3295.7,3294.8,0.00327645]
[1768637874222,0.91042618,3295.6,3294.8,0.00327645]
[1768637874422,0.14379777,3295.7,3294.8,0.00327645]
[1768637874722,0.9104262,3295.6,3294.8,0.00327645]
[1768637875029,0.14379777,3295.7,3294.8,0.00327645]
[1768637875930,0.91049113,3295.6,3294.8,0.00327645]
[1768637876123,0.14379777,3295.7,3294.8,0.00327645]
[1768637876323,0.91057523,3295.6,3294.8,0.00327645]
[1768637876623,0.14379777,3295.7,3294.8,0.00327645]
[1768637876822,1.0706759,3295.6,3294.8,0.00327645]
[1768637877032,0.16010019,3295.6,3294.8,0.00327645]
[1768637877929,0.16010019,3295.6,3294.0,0.15184]
[1768637878130,0.16010019,3295.4,3294.0,2.27084]
[1768637879137,0.16010019,3295.4,3294.0,2.27475365]
[1768637901342,0.16010019,3295.4,3294.3,0.98344486]
[1768637904544,0.16010019,3295.4,3294.0,0.15575365]
[1768637904849,0.16010019,3295.4,3294.1,0.98344486]
[1768637907144,0.91012578,3295.3,3294.1,0.98344486]
[1768637907344,0.16010019,3295.4,3294.1,0.98344486]
[1768637907546,0.91011252,3295.3,3294.0,0.00391365]
[1768637907849,0.16010019,3295.4,3294.1,0.98344486]
[1768637908049,0.91011331,3295.3,3294.1,0.98344486]
[1768637908250,0.16010019,3295.4,3294.1,0.98344486]
[1768637908549,0.91012027,3295.3,3294.1,0.98344486]
[1768637908752,0.16010019,3295.4,3294.1,0.98344486]
[1768637908940,0.91012027,3295.3,3294.1,0.98344486]
[1768637909142,0.16010019,3295.4,3294.1,0.98344486]
[1768637909436,0.91011836,3295.3,3294.1,0.98344486]
[1768637909641,0.16010019,3295.4,3294.1,0.98344486]
[1768637909843,0.91010244,3295.3,3294.1,0.98344486]
[1768637910043,0.16010019,3295.4,3294.1,0.98344486]
[1768637910252,0.91010244,3295.3,3294.1,0.98344486]
[1768637910446,0.16010019,3295.4,3294.1,0.98344486]
[1768637910642,0.91008977,3295.3,3294.1,0.98344486]
[1768637910846,0.16010019,3295.4,3294.1,0.98344486]
[1768637911041,0.91008977,3295.3,3294.1,0.98344486]
[1768637911244,0.16010019,3295.4,3294.1,0.98344486]
[1768637911445,0.91007922,3295.3,3294.1,0.98344486]
[1768637911646,0.16010019,3295.4,3294.1,0.98344486]
[1768637911841,0.91007922,3295.3,3294.0,0.00391365]
[1768637912051,0.16043117,3295.1,3294.0,0.00391365]
[1768637913347,0.16043117,3295.1,3294.0,0.98735851]
[1768637914656,0.16043117,3294.9,3293.4,3.69810964]
[1768637914957,0.90971296,3294.8,3294.4,0.98344486]
[1768637915260,1.61543117,3295.2,3294.2,0.98344486]
[1768637915449,0.90983914,3295.1,3294.2,0.98344486]
[1768637915649,0.90983914,3295.0,3294.2,0.98652865]
[1768637915851,0.90983914,3294.9,3294.2,0.98652865]
[1768637916051,0.16043117,3295.1,3294.2,0.98652865]
[1768637916257,0.90984024,3295.0,3294.2,0.98652865]
[1768637916461,0.90984024,3294.9,3294.2,0.00308379]
[1768637916662,0.16043117,3295.1,3294.2,0.00308379]
[1768637916848,1.06998664,3295.0,3294.2,0.00308379]
[1768637917052,1.06998664,3294.9,3294.2,0.00308379]
[1768637917266,0.16043117,3294.9,3294.2,0.00308379]
[1768637941385,0.91177385,3294.8,3294.2,0.00308379]
[1768637941584,0.16043117,3294.9,3294.2,0.00308379]
[1768637941784,0.91177385,3294.8,3294.2,0.00308379]
[1768637941986,0.16043117,3294.9,3294.2,0.00308379]
[1768637942185,0.91177385,3294.8,3294.2,0.00308379]
[1768637942387,0.16043117,3294.9,3294.2,0.00308379]
[1768637942586,0.91195128,3294.8,3294.2,0.00308379]
[1768637942787,0.16043117,3294.9,3294.2,0.00308379]
[1768637943086,0.91195128,3294.8,3294.2,0.00308379]
[1768637943281,0.16043117,3294.9,3294.2,0.00308379]
[1768637943477,0.91219056,3294.8,3294.2,0.00308379]
[1768637943680,0.16043117,3294.9,3294.2,0.00308379]
[1768637943875,0.9121907,3294.8,3294.2,0.00308379]
[1768637944080,0.16043117,3294.9,3294.2,0.00308379]
[1768637944390,0.9121907,3294.8,3294.2,0.00308379]
[1768637944585,1.09281433,3294.7,3294.2,0.00308379]
[1768637944890,0.18062363,3294.7,3294.2,0.00308379]
[1768637959300,0.18062363,3295.2,3294.3,0.98344486]
[1768637959504,1.17454299,3295.1,3294.3,0.98344486]
[1768637959702,0.91284183,3295.0,3294.3,0.98344486]
[1768637959997,0.91284183,3294.9,3294.3,0.98344486]
[1768637960202,0.91284183,3294.8,3294.3,0.98344486]
[1768637960502,0.18062363,3295.2,3294.3,0.98344486]
[1768637960700,1.35498202,3295.1,3294.3,0.98344486]
[1768637960901,0.91269242,3295.0,3294.3,0.98344486]
[1768637961294,1.09331605,3295.0,3294.3,0.98344486]
[1768637961497,0.91269242,3294.9,3294.3,0.98344486]
[1768637961696,0.18062363,3295.0,3294.3,0.98344486]
[1768637961697,0.91269242,3294.8,3294.3,0.98344486]
[1768637961896,0.18062363,3295.0,3294.3,0.98344486]
[1768637962092,0.16708863,3294.8,3293.1,3.81685541]
[1768637962295,0.16708863,3294.2,3292.6,5.46249491]
[1768637962500,0.16708863,3294.7,3293.6,0.98344486]
[1768637962702,1.17438602,3294.6,3293.6,0.98344486]
[1768637963001,0.91273795,3294.5,3293.6,0.98344486]
[1768637963311,0.91273795,3294.4,3293.6,0.00262]
[1768637965608,1.07982658,3294.4,3293.6,0.00262]
[1768637965808,0.16708863,3294.4,3293.6,0.00262]
[1768637971315,0.00250568,3294.5,3293.6,0.00262]
[1768637973911,0.91223421,3294.4,3293.6,0.00262]
[1768637974111,0.00250568,3294.5,3293.6,0.00262]
[1768637974317,0.91221089,3294.4,3293.6,0.00262]
[1768637974516,0.00250568,3294.5,3293.6,0.00262]
[1768637974709,0.91221089,3294.4,3293.6,0.00262]
[1768637974906,0.00250568,3294.5,3293.6,0.00262]
[1768637975107,0.91221089,3294.4,3293.6,0.00262]
[1768637975308,0.00250568,3294.5,3293.6,0.00262]
[1768637978618,0.91221451,3294.4,3293.6,0.00262]
[1768637978820,0.00250568,3294.5,3293.6,0.00262]
[1768637979014,0.91220827,3294.4,3293.6,0.00262]
[1768637979214,0.00250568,3294.5,3293.6,0.00262]
[1768637979416,0.91224384,3294.4,3293.6,0.00262]
[1768637979618,0.00250568,3294.5,3293.6,0.00262]
[1768637979813,0.91224384,3294.4,3293.6,0.00262]
[1768637980013,0.00250568,3294.5,3293.6,0.00262]
[1768637980213,0.91224384,3294.4,3293.6,0.00262]
[1768637980413,0.00250568,3294.5,3293.6,0.00262]
[1768637980621,0.91226557,3294.4,3293.6,0.00262]
[1768637980821,0.00250568,3294.5,3293.6,0.00262]
[1768637981118,0.91226561,3294.4,3293.6,0.00262]
[1768637981318,0.00250568,3294.5,3293.6,0.00262]
[1768637981521,0.91229804,3294.4,3293.6,0.00262]
[1768637981722,0.00250568,3294.5,3293.6,0.00262]
[1768637981921,0.91229804,3294.4,3293.6,0.00262]
[1768637982222,0.00250568,3294.5,3293.6,0.00262]
[1768637982418,0.91234128,3294.4,3293.6,0.00262]
[1768637982611,0.00250568,3294.5,3293.6,0.00262]
[1768637982811,0.91234128,3294.4,3293.6,0.00262]
[1768637983021,0.00250568,3294.5,3293.6,0.00262]
[1768637983222,0.91234128,3294.4,3293.6,0.00262]
[1768637983518,0.00250568,3294.5,3293.6,0.00262]
[1768637983712,0.91239595,3294.4,3293.6,0.00262]
[1768637983912,0.00250568,3294.5,3293.6,0.00262]
[1768637984116,0.91239512,3294.4,3293.6,0.00262]
[1768637984321,0.00250568,3294.5,3293.6,0.00262]
[1768637984620,0.91246371,3294.4,3293.6,0.00262]
[1768637984924,0.00250568,3294.5,3293.6,0.00262]
[1768637985114,0.91246371,3294.4,3293.6,0.00262]
[1768637985414,0.00250568,3294.5,3293.6,0.00262]
[1768637985611,0.91254607,3294.4,3293.6,0.00262]
[1768637985808,0.00250568,3294.5,3293.6,0.00262]
[1768637986011,0.91254607,3294.4,3293.6,0.00262]
[1768637986212,0.00250568,3294.5,3293.6,0.00262]
[1768637986412,0.91264357,3294.4,3293.6,0.00262]
[1768637986615,0.00250568,3294.5,3293.6,0.00262]
[1768637986814,0.91264357,3294.4,3293.6,0.00262]
[1768637987020,0.00250568,3294.5,3293.6,0.00262]
[1768637987218,0.91264371,3294.4,3293.6,0.00262]
[1768637987425,0.00250568,3294.5,3293.6,0.00262]
[1768637987721,0.91275855,3294.4,3293.6,0.00262]
[1768637987921,0.00250568,3294.5,3293.6,0.00262]
[1768637988222,0.91275854,3294.4,3293.6,0.00262]
[1768637988425,0.00250568,3294.5,3293.6,0.00262]
[1768637988626,0.9128954,3294.4,3293.6,0.00262]
[1768637988922,0.00250568,3294.5,3293.6,0.00262]
[1768637989113,0.91287839,3294.4,3293.6,0.00262]
[1768637989320,0.00250568,3294.5,3293.6,0.00262]
[1768637989520,0.91304475,3294.4,3293.6,0.00262]
[1768637989821,0.17930048,3295.2,3293.9,0.98392591]
[1768637990023,0.91297978,3295.1,3293.9,0.98392591]
[1768637990331,0.91297978,3295.0,3293.9,0.98392591]
[1768637990527,0.91297978,3294.9,3293.9,0.98392591]
[1768637990827,0.00227479,3294.9,3293.9,0.98392591]
[1768638015057,0.00227479,3294.9,3293.8,0.18624427]
[1768638019157,0.90244721,3294.8,3293.8,0.18624427]
[1768638019360,0.00227479,3294.9,3293.8,0.18624427]
[1768638025062,3.39054739,3295.6,3293.6,0.00262]
[1768638025063,0.35354739,3295.6,3294.2,0.20318049]
[1768638025365,1.16294649,3295.5,3294.4,0.98332656]
[1768638025564,1.16294649,3295.4,3294.4,0.98332656]
[1768638025867,1.16294649,3295.3,3294.4,0.98332656]
[1768638026055,0.90141459,3295.2,3294.4,0.98332656]
[1768638026260,0.90141459,3295.1,3294.4,0.98332656]
[1768638026458,0.00241732,3295.3,3294.4,0.98332656]
[1768638026764,0.90131102,3295.2,3294.4,0.98332656]
[1768638027068,0.00241732,3295.3,3294.4,0.98332656]
[1768638027257,0.90121577,3295.2,3294.6,0.98332656]
[1768638027458,0.00241732,3295.3,3294.6,0.98332656]
[1768638027662,0.90121092,3295.2,3294.6,0.98332656]
[1768638027862,0.00241732,3295.3,3294.6,0.98332656]
[1768638028067,0.90121106,3295.2,3294.6,0.98332656]
[1768638028365,0.00241732,3295.3,3294.6,0.98332656]
[1768638028565,0.90113587,3295.2,3294.6,0.98332656]
[1768638028764,0.00241732,3295.3,3294.6,0.98332656]
[1768638028963,0.90113587,3295.2,3294.6,0.98332656]
[1768638029263,0.00241732,3295.3,3294.6,0.98332656]
[1768638029462,0.90107626,3295.2,3294.6,0.98332656]
[1768638029665,0.00241732,3295.3,3294.6,0.98332656]
[1768638029866,0.90107627,3295.2,3294.6,0.98332656]
[1768638030069,0.00241732,3295.3,3294.6,0.98332656]
[1768638030255,0.90103062,3295.2,3294.6,0.98332656]
[1768638030458,0.00241732,3295.3,3294.6,0.98332656]
[1768638030655,0.90103076,3295.2,3294.6,0.98332656]
[1768638030870,0.00241732,3295.3,3294.6,0.98332656]
[1768638031067,0.90103334,3295.2,3294.6,0.98332656]
[1768638031269,0.00241732,3295.3,3294.6,0.98332656]
[1768638031469,0.900987,3295.2,3294.6,0.98332656]
[1768638031668,0.00241732,3295.3,3294.6,0.98332656]
[1768638031966,0.90098701,3295.2,3294.6,0.98332656]
[1768638032266,0.00241732,3295.3,3294.6,0.98332656]
[1768638032464,0.9009485,3295.2,3294.6,0.98332656]
[1768638032660,0.00241732,3295.3,3294.6,0.98332656]
[1768638032861,0.90094851,3295.2,3294.6,0.98332656]
[1768638033061,0.00241732,3295.3,3294.6,0.98332656]
[1768638033258,0.90094851,3295.2,3294.6,0.98332656]
[1768638033470,0.00241732,3295.3,3294.6,0.98332656]
[1768638033671,0.90091795,3295.2,3294.6,0.98332656]
[1768638033972,0.00241732,3295.3,3294.6,0.98332656]
[1768638034168,0.90091795,3295.2,3294.6,0.98332656]
[1768638034368,0.00241732,3295.3,3294.6,0.98332656]
[1768638034570,0.90089466,3295.2,3294.6,0.98332656]
[1768638034770,0.00241732,3295.3,3294.6,0.98332656]
[1768638034980,0.90089466,3295.2,3294.6,0.98332656]
[1768638035168,0.00241732,3295.3,3294.6,0.98332656]
[1768638035364,0.90087664,3295.2,3294.6,0.98332656]
[1768638035663,0.00241732,3295.3,3294.6,0.98332656]
[1768638035862,0.90087558,3295.2,3294.6,0.98332656]
[1768638036073,0.00241732,3295.3,3294.6,0.98332656]
[1768638036270,0.90086565,3295.2,3294.6,0.98332656]
[1768638036467,0.00241732,3295.3,3294.6,0.98332656]
[1768638036768,0.00241732,3295.3,3294.8,1.1862533]
[1768638036964,0.00241732,3295.3,3294.6,0.98332656]
[1768638038176,0.00241732,3295.3,3294.5,0.98332656]
[1768638040171,0.00241732,3295.3,3294.3,0.20292674]
[1768638040376,0.00241732,3295.3,3294.3,1.1862533]
[1768638046585,0.2056014,3296.7,3295.2,0.98332656]
[1768638046786,1.16209607,3296.3,3295.2,0.98332656]
[1768638047081,1.16209607,3296.2,3295.2,0.98332656]
[1768638047285,0.9007232,3296.1,3295.0,0.98332656]
[1768638047476,0.9007232,3296.0,3295.0,0.98332656]
[1768638047678,0.9007232,3295.9,3295.0,0.98332656]
[1768638047879,0.00367666,3296.0,3295.0,0.98332656]
[1768638048183,0.9004462,3295.9,3295.2,0.98332656]
[1768638048381,0.2056014,3296.7,3294.8,0.20292674]
[1768638048382,0.2056014,3297.2,3295.8,0.98332656]
[1768638048683,0.2056014,3296.9,3295.6,0.98332656]
[1768638048884,0.2056014,3296.7,3295.4,0.98332656]
[1768638049476,0.20793013,3296.7,3295.4,0.98332656]
[1768638061590,0.20793013,3296.7,3295.0,40.8]
[1768638061796,0.22206519,3296.5,3295.3,0.98332656]
[1768638076193,0.90309745,3296.4,3295.3,0.98332656]
[1768638076396,0.22206519,3296.5,3295.3,0.98332656]
[1768638076593,0.90312028,3296.4,3295.3,0.98332656]
[1768638076798,0.22206519,3296.5,3295.3,0.98332656]
[1768638076999,0.90312028,3296.4,3295.3,0.98332656]
[1768638077200,0.22206519,3296.5,3295.3,0.98332656]
[1768638077402,0.90345689,3296.4,3295.3,0.98332656]
[1768638077602,0.22206519,3296.5,3295.3,0.98332656]
[1768638077809,0.90345688,3296.4,3295.3,0.98332656]
[1768638078006,0.22206519,3296.5,3295.3,0.98332656]
[1768638078204,0.90345688,3296.4,3295.3,0.98332656]
[1768638078405,0.90345688,3296.3,3295.3,0.98332656]
[1768638078605,0.22206519,3296.5,3295.3,0.98332656]
[1768638078808,0.9041028,3296.4,3295.3,0.98332656]
[1768638078999,0.9041028,3296.3,3295.3,0.98332656]
[1768638079201,0.22206519,3296.5,3295.3,0.98332656]
[1768638079498,0.90410898,3296.4,3295.3,0.98332656]
[1768638079701,0.90410898,3296.3,3295.3,0.98332656]
[1768638079901,0.22206519,3296.5,3295.3,0.98332656]
[1768638080102,0.90410814,3296.4,3295.3,0.98332656]
[1768638080395,0.90410814,3296.3,3295.3,0.98332656]
[1768638080599,0.22206519,3296.5,3295.3,0.98332656]
[1768638080795,0.90411534,3296.4,3295.3,0.98332656]
[1768638081000,0.90411534,3296.3,3295.3,0.98332656]
[1768638081210,0.22206519,3296.5,3295.3,0.98332656]
[1768638081408,0.90412353,3296.4,3295.3,0.98332656]
[1768638081605,0.90412353,3296.3,3295.3,0.98332656]
[1768638081809,0.22206519,3296.5,3295.3,0.98332656]
[1768638082008,0.90412351,3296.4,3295.0,40.8]
[1768638082311,0.90412351,3296.3,3295.3,0.98332656]
[1768638082509,0.22206519,3296.5,3295.3,0.98332656]
[1768638082710,0.90413268,3296.4,3295.3,0.98332656]
[1768638083009,0.90413268,3296.3,3295.3,0.98332656]
[1768638083205,0.22206519,3296.5,3295.3,0.98332656]
[1768638083406,0.90609851,3296.4,3295.3,0.98332656]
[1768638083709,0.90609851,3296.3,3295.0,0.98332656]
[1768638084007,0.98332656,3295.8,3294.5,3.81685541]
[1768638084315,0.24475925,3296.0,3294.4,0.98332656]
[1768638084607,0.24475925,3296.0,3294.3,40.8]
[1768638084608,0.24475925,3296.0,3294.7,0.98332656]
[1768638084814,0.90556293,3295.9,3294.7,0.98332656]
[1768638085012,0.90556293,3295.8,3294.7,0.98332656]
[1768638085212,0.24475925,3296.0,3294.7,0.98332656]
[1768638085513,0.90524101,3295.9,3294.7,0.98332656]
[1768638085705,0.90524101,3295.8,3294.7,0.98332656]
[1768638085907,0.24475925,3296.0,3294.7,0.98332656]
[1768638086108,0.90524118,3295.9,3294.7,0.98332656]
[1768638086306,0.24475925,3296.0,3294.7,0.98332656]
[1768638086504,0.9050081,3295.9,3294.7,0.98332656]
[1768638086711,0.24475925,3296.0,3294.7,0.98332656]
[1768638086912,0.90500797,3295.9,3294.7,0.98332656]
[1768638087111,0.24475925,3296.0,3294.7,0.98332656]
[1768638087411,0.90499209,3295.9,3294.4,0.98311417]
[1768638087711,0.24475925,3296.0,3294.4,0.98311417]
[1768638087913,0.90482785,3295.9,3294.4,0.98311417]
[1768638088115,0.24475925,3296.0,3294.4,0.98311417]
[1768638088413,0.90481138,3295.9,3294.4,0.98311417]
[1768638088606,0.24475925,3296.0,3294.4,0.98311417]
[1768638088808,0.90468461,3295.9,3294.4,0.98311417]
[1768638089002,0.24475925,3296.0,3294.4,0.98311417]
[1768638089200,0.90468461,3295.9,3294.4,0.98311417]
[1768638089404,0.24475925,3296.0,3294.4,0.98311417]
[1768638089608,0.90456887,3295.9,3294.4,0.98311417]
[1768638089910,0.24475925,3296.0,3294.4,0.98311417]
[1768638090102,0.90456903,3295.9,3294.4,0.98311417]
[1768638090304,0.24475925,3296.0,3294.4,0.98311417]
[1768638090517,0.90448684,3295.9,3294.4,0.98311417]
[1768638090714,0.15172,3296.6,3295.0,1.22779764]
[1768638091008,1.16548392,3296.5,3295.0,1.22779764]
[1768638091213,1.16548392,3296.4,3295.0,1.22779764]
[1768638091412,0.90442745,3296.3,3295.0,1.22779764]
[1768638091713,0.24708798,3296.7,3295.0,1.22779764]
[1768638091908,1.16542255,3296.6,3295.0,1.22779764]
[1768638092113,0.90438414,3296.5,3295.0,1.22779764]
[1768638092415,0.90438414,3296.4,3295.0,1.22779764]
[1768638092614,0.24708798,3296.7,3295.1,0.2438255]
[1768638092816,0.90437921,3296.6,3295.1,0.2438255]
[1768638093012,0.90437921,3296.5,3295.1,0.2438255]
[1768638093307,0.24708798,3296.7,3295.1,0.2438255]
[1768638093613,0.90436858,3296.6,3295.1,0.2438255]
[1768638093810,0.90436858,3296.5,3295.1,0.2438255]
[1768638094114,0.24708798,3296.7,3295.1,0.2438255]
[1768638094411,0.9043874,3296.6,3295.1,0.2438255]
[1768638094617,0.9043874,3296.5,3295.1,0.2438255]
[1768638094811,0.24708798,3296.7,3295.1,0.2438255]
[1768638095111,0.90435881,3296.6,3295.1,0.2438255]
[1768638095415,0.90435881,3296.5,3295.1,0.2438255]
[1768638095716,0.24708798,3296.7,3295.1,0.2438255]
[1768638096015,0.9043516,3296.6,3295.1,0.2438255]
[1768638096312,0.9043516,3296.5,3295.1,0.2438255]
[1768638096514,0.24708798,3296.7,3295.1,0.2438255]
[1768638096717,0.90434544,3296.6,3295.1,0.2438255]
[1768638096914,0.90434544,3296.5,3295.1,0.2438255]
[1768638097215,0.24708798,3296.7,3295.1,0.2438255]
[1768638097416,0.90433859,3296.6,3295.1,0.2438255]
[1768638097716,0.90433859,3296.5,3295.1,0.2438255]
[1768638097913,0.24708798,3296.7,3295.1,0.2438255]
[1768638098113,0.90433845,3296.6,3295.1,0.2438255]
[1768638098307,0.90433845,3296.5,3295.1,0.2438255]
[1768638098506,0.24708798,3296.7,3295.1,0.2438255]
[1768638098708,0.90433182,3296.6,3295.1,0.2438255]
[1768638098914,0.90433182,3296.5,3295.1,0.2438255]
[1768638099113,0.24708798,3296.7,3295.1,0.2438255]
[1768638099313,0.90433196,3296.6,3295.1,0.2438255]
[1768638099508,0.90433196,3296.5,3295.1,0.2438255]
[1768638099707,0.24708798,3296.7,3295.1,0.2438255]
[1768638099910,0.90432527,3296.6,3295.1,0.2438255]
[1768638100117,0.90432527,3296.5,3295.1,0.2438255]
[1768638100318,0.24708798,3296.7,3295.1,0.2438255]
[1768638100514,0.90431842,3296.6,3295.1,0.2438255]
[1768638100712,0.90431842,3296.5,3295.1,0.2438255]
[1768638100919,0.24708798,3296.7,3295.4,0.98311417]
[1768638101110,0.90431816,3296.6,3295.4,0.98311417]
[1768638101314,0.24708798,3296.7,3295.4,0.98311417]
[1768638101616,0.90429443,3296.6,3295.4,0.98311417]
[1768638101816,0.24708798,3296.7,3295.4,0.98311417]
[1768638102018,0.90429443,3296.6,3295.4,0.98311417]
[1768638102218,0.24708798,3296.7,3295.4,0.98311417]
[1768638102417,0.90427318,3296.6,3295.1,1.22693967]
[1768638102621,0.24708798,3296.7,3295.1,1.22693967]
[1768638102821,1.14827124,3296.6,3295.1,1.22693967]
[1768638103010,0.24399756,3296.6,3295.1,1.22693967]
[1768638114035,0.24399756,3296.6,3294.8,0.40689012]
[1768638114224,0.24399756,3296.6,3294.9,0.98311417]
[1768638115235,0.90489176,3296.5,3294.9,0.98311417]
[1768638115436,0.24399756,3296.6,3294.9,0.98311417]
[1768638115735,0.90489176,3296.5,3294.9,0.98311417]
[1768638116035,0.24399756,3296.6,3294.9,0.98311417]
[1768638116240,0.90490439,3296.5,3294.9,0.98311417]
[1768638116427,0.24399756,3296.6,3294.9,0.98311417]
[1768638116737,0.90506133,3296.5,3294.9,0.98311417]
[1768638116939,0.24399756,3296.6,3294.9,0.98311417]
[1768638117140,0.9050612,3296.5,3294.9,0.98311417]
[1768638117340,0.24399756,3296.6,3294.9,0.98311417]
[1768638117638,0.9052487,3296.5,3294.9,0.98311417]
[1768638117835,0.24399756,3296.6,3294.9,0.98311417]
[1768638118137,0.9052473,3296.5,3294.9,0.98311417]
[1768638118333,0.24399756,3296.6,3294.9,0.98311417]
[1768638118527,0.90547739,3296.5,3294.9,0.98311417]
[1768638118729,0.24399756,3296.6,3294.9,0.98311417]
[1768638118930,0.90547739,3296.5,3294.9,0.98311417]
[1768638119233,0.90577877,3296.4,3294.9,0.98311417]
[1768638119531,0.24399756,3296.6,3294.9,0.98311417]
[1768638119731,0.90577875,3296.5,3294.9,0.98311417]
[1768638120030,0.90577875,3296.4,3294.9,0.98311417]
[1768638120232,0.24399756,3296.6,3294.9,0.98311417]
[1768638120430,0.90623183,3296.5,3294.9,0.98311417]
[1768638120630,0.90623183,3296.4,3294.9,0.98311417]
[1768638120838,0.24399756,3296.6,3294.9,0.98311417]
[1768638121137,0.90623185,3296.5,3294.9,0.98311417]
[1768638121337,0.90623185,3296.4,3294.9,0.98311417]
[1768638121638,0.24399756,3296.6,3294.9,0.98311417]
[1768638121838,0.90653623,3296.5,3294.9,0.98311417]
[1768638122036,0.90653623,3296.4,3294.9,0.98311417]
[1768638122227,0.90665154,3296.3,3294.9,0.98311417]
[1768638122429,0.24399756,3296.6,3294.9,0.98311417]
[1768638122734,0.90665154,3296.5,3294.9,0.98311417]
[1768638122937,0.90665154,3296.4,3294.9,0.98311417]
[1768638123235,0.90665154,3296.3,3294.9,0.98311417]
[1768638123436,0.24399756,3296.6,3294.9,0.98311417]
[1768638123639,0.90666389,3296.5,3294.9,0.98311417]
[1768638123841,0.90666389,3296.4,3294.9,0.98311417]
[1768638124032,0.90666389,3296.3,3295.0,0.25509012]
[1768638124234,0.24399756,3296.6,3295.0,0.25509012]
[1768638124528,0.90667763,3296.5,3295.0,0.25509012]
[1768638124727,0.90667763,3296.4,3295.0,0.25509012]
[1768638124924,0.90667763,3296.3,3295.0,0.25509012]
[1768638125127,0.24399756,3296.6,3295.0,0.25509012]
[1768638125326,0.90667978,3296.5,3295.0,0.25509012]
[1768638125538,0.90667978,3296.4,3295.0,0.25509012]
[1768638125738,0.90667978,3296.3,3295.0,0.25509012]
[1768638126039,0.24399756,3296.6,3295.0,0.25509012]
[1768638126241,0.90668162,3296.5,3295.0,0.25509012]
[1768638126440,0.90668162,3296.4,3295.0,0.25509012]
[1768638126737,0.90668162,3296.3,3295.0,0.25509012]
[1768638126929,0.24399756,3296.6,3295.0,0.25509012]
[1768638127338,0.90669202,3296.5,3295.0,0.25509012]
[1768638127636,0.90669202,3296.4,3295.0,0.25509012]
[1768638127843,0.90669202,3296.3,3295.0,0.25509012]
[1768638128038,0.24399756,3296.6,3295.0,0.25509012]
[1768638128237,0.90669341,3296.5,3295.0,0.25509012]
[1768638128440,0.90669341,3296.4,3295.0,0.25509012]
[1768638128629,0.90669341,3296.3,3295.0,0.25509012]
[1768638128830,0.24399756,3296.6,3295.0,0.25509012]
[1768638129029,0.90670155,3296.5,3295.0,0.25509012]
[1768638129229,0.90670155,3296.4,3295.0,0.25509012]
[1768638129441,0.90670155,3296.3,3295.0,0.25509012]
[1768638129738,0.24399756,3296.6,3295.0,0.25509012]
[1768638129940,0.90671092,3296.5,3295.0,0.25509012]
[1768638130138,0.90671092,3296.4,3295.0,2.59509012]
[1768638130333,0.90671092,3296.3,3295.0,2.59509012]
[1768638130534,0.24399756,3296.6,3295.0,2.59509012]
[1768638130737,0.90672146,3296.5,3295.0,2.59509012]
[1768638130935,0.90672146,3296.4,3295.0,2.59509012]
[1768638131141,0.90672146,3296.3,3295.0,2.59509012]
[1768638131341,0.24399756,3296.6,3295.0,2.59509012]
[1768638131541,0.9067324,3296.5,3295.0,2.59509012]
[1768638131838,0.9067324,3296.4,3295.0,2.59509012]
[1768638132041,0.9067324,3296.3,3295.0,2.59509012]
[1768638132241,0.24399756,3296.6,3295.0,2.59509012]
[1768638132434,0.90673842,3296.5,3295.0,2.59509012]
[1768638132633,0.90673842,3296.4,3295.0,2.59509012]
[1768638132841,0.24399756,3296.6,3295.0,2.59509012]
[1768638133140,0.90672998,3296.5,3295.0,2.59509012]
[1768638133341,0.90672998,3296.4,3295.0,2.59509012]
[1768638133534,0.24399756,3296.6,3295.0,2.59509012]
[1768638133726,0.90673264,3296.5,3295.0,2.59509012]
[1768638133930,0.90673264,3296.4,3295.0,2.59509012]
[1768638134128,0.24399756,3296.6,3295.0,2.59509012]
[1768638134333,0.90673536,3296.5,3295.0,2.59509012]
[1768638134633,0.90673536,3296.4,3295.0,2.59509012]
[1768638134827,0.24399756,3296.6,3295.0,2.59509012]
[1768638135042,0.90673536,3296.5,3295.0,2.59509012]